Cogmind - Beta 16 @@@ ROGUE MODE // 2025.11.17 @ 20:43:41 Player: ktur Result: Destroyed by P-80 Master with Gamma Rifle Performance ------------- Evolutions (7) 3500 Regions Visited (18) 3600 Robots Destroyed (187) 935 Value Destroyed (9333) 9333 Prototype IDs (22) 440 Alien Tech Used (0) 0 Bonus (7106) 7106 TOTAL SCORE: 24914 Bonus ------- High Alert Combat Kills 683 Follower Combat Kills 223 Entered Garrisons 1200 Used RIF Installer 5000 Cogmind --------- Core Integrity 0/1300 Matter 116/300 Energy 99/100 System Corruption 11% Temperature Cool (27) Movement Core (50) Location -3/Research Parts ------- > --- POWER (2) -------- (None) > --- PROPULSION (6) --- (None) > --- UTILITY (10) ----- (None) > --- WEAPON (3) ------- (None) > --- INVENTORY (5) ---- Quantum Capacitor Improved Medium Armor Plating Long-range Proton Cannon Improved Remote Datajack Peak State ------------ > --- POWER ------------ Micro Fission Core > --- PROPULSION ------- Heavy Treads Heavy Treads > --- UTILITY ---------- Large Storage Unit Medium Reactive Plating System Shield Relay Coupler [C] Relay Coupler [C] Relay Coupler [C] Relay Coupler [Sentry] Relay Coupler [Hunter] Advanced System Restoration Module > --- WEAPON ----------- Mini Assault Cannon Mini Smartbomb Launcher Remote Datajack > --- INVENTORY -------- Cooled Aerolev Unit Combat Airjet Combat Airjet Combat Gravmag System Huge Storage Unit Improved Utility Shielding EM Disruption Field Advanced Shield Generator Advanced Hacking Suite Authchip [Device] Relay Coupler [C] Long-range Proton Cannon Mini Grenade Launcher Remote Datajack Powered Hammer [Rating: 100] Favorites ----------- Power Ion Engine Engine Ion Engine Power Core Light Nuclear Core Reactor Particle Reactor Propulsion Light Treads Treads Light Treads Leg Improved Carbon-fiber Leg Wheel Compact Wheel Hover Unit Combat Gravmag System Flight Unit Q-thruster Utility Large Storage Unit Device Seismic Detector Storage Large Storage Unit Processor Transport Network Coupler Hackware Hacking Suite Protection Improved Utility Shielding Weapon Subdweller Beam Cannon Energy Gun Gatling Laser Energy Cannon Subdweller Beam Cannon Ballistic Gun Precision Assault Rifle Ballistic Cannon Improved Light Cannon Launcher Mini Smartbomb Launcher Special Weapon Remote Datajack Impact Weapon Powered Hammer Special Melee Weapon Datajack Build | -11 -10 -10 -8 -8 -8 -8 -8 -8 -7 -7 -7 -7 -6 -6 -5 -4 -4 -3 ------- Run | Yrd Mat Sub Mat Gar Mat Gar Mat Gar Fac Was Fac Gar Fac Gar Fac Fac Gar Res Slots Evolved 14 | . . . 4 . . . . . 2 . . . 2 . 2 2 . 2 Power 1 | . . . . . . . . . . . . . . . . . . 1 Propulsion 4 | . . . 1 . . . . . 1 . . . . . . 1 . 1 Utility 8 | . . . 2 . . . . . 1 . . . 2 . 2 1 . . Weapon 1 | . . . 1 . . . . . . . . . . . . . . . Parts Attached 165 | 8 4 9 5 5 13 20 6 7 25 . 1 14 6 15 16 1 6 4 Power 22 | 1 . . . 2 1 3 . 2 3 . . 4 . 4 1 . . 1 Engine 6 | 1 . . . 1 . 2 . . . . . 1 . 1 . . . . Core 15 | . . . . 1 1 1 . 2 3 . . 3 . 3 1 . . . Reactor 1 | . . . . . . . . . . . . . . . . . . 1 Propulsion 54 | 3 . 3 . . 2 8 4 1 7 . 1 2 1 7 6 1 5 3 Treads 15 | 2 . 3 . . 2 . 3 1 2 . . . . . 2 . . . Leg 26 | . . . . . . 8 . . 5 . 1 1 1 7 3 . . . Wheel 1 | 1 . . . . . . . . . . . . . . . . . . Hover 2 | . . . . . . . . . . . . . . . 1 1 . . Flight 10 | . . . . . . . 1 . . . . 1 . . . . 5 3 Utility 46 | 2 1 . 2 3 3 5 . 3 8 . . 4 4 3 7 . 1 . Device 9 | 1 . . 1 1 1 . . . 1 . . . 2 . 1 . 1 . Storage 4 | 1 1 . . . . . . . 1 . . . 1 . . . . . Processor 1 | . . . . . . . . . 1 . . . . . . . . . Hackware 17 | . . . . . . 3 . 1 3 . . 3 1 2 4 . . . Protection 15 | . . . 1 2 2 2 . 2 2 . . 1 . 1 2 . . . Artifact . | . . . . . . . . . . . . . . . . . . . Weapon 43 | 2 3 6 3 . 7 4 2 1 7 . . 4 1 1 2 . . . Energy Gun 8 | 1 . . . . 5 1 . . 1 . . . . . . . . . Energy Cannon 3 | . . 3 . . . . . . . . . . . . . . . . Ballistic Gun 15 | 1 1 1 . . 2 1 2 1 3 . . 2 . 1 . . . . Ballistic Cannon 7 | . 2 . 3 . . . . . 1 . . 1 . . . . . . Launcher 4 | . . 2 . . . 1 . . . . . . . . 1 . . . Special Weapon 4 | . . . . . . . . . 1 . . 1 1 . 1 . . . Impact Weapon 1 | . . . . . . . . . 1 . . . . . . . . . Slashing Weapon . | . . . . . . . . . . . . . . . . . . . Piercing Weapon . | . . . . . . . . . . . . . . . . . . . Special Melee Weapon 1 | . . . . . . 1 . . . . . . . . . . . . Unidentified Prototypes 10 | . . . . . 2 . 1 . 2 . . 1 . . 4 . . . Corrupted Parts 1 | . . . . . . . . 1 . . . . . . . . . . System Corruption 2 | . . . . . . . . 2 . . . . . . . . . . Parts Lost 66 | . . 3 . 2 1 7 . 5 8 . . 3 . 10 13 . 9 5 Power 6 | . . . . . . . . 1 2 . . 1 . 1 1 . . . Propulsion 26 | . . 1 . . . 5 . 1 3 . . . . 4 3 . 5 4 Utility 20 | . . 1 . 2 1 1 . 2 1 . . 1 . 1 6 . 3 1 Weapon 14 | . . 1 . . . 1 . 1 2 . . 1 . 4 3 . 1 . Highest Loss Streak 10 | . . 2 . 1 1 2 . 3 2 . . 3 . 2 10 . 6 4 To Critical Strikes . | . . . . . . . . . . . . . . . . . . . Average Backups 13 | 3 10 13 11 11 14 13 14 12 14 15 14 14 14 14 14 5 4 4 Power . | . 1 . . . 1 1 1 1 . 1 1 1 1 . . . . . Propulsion 1 | 1 2 2 1 . . 1 1 . 3 1 . . . . 3 1 1 . Utility 5 | . 3 3 6 7 8 8 8 7 6 5 5 6 7 8 7 1 1 1 Weapon 3 | 1 3 7 4 3 4 2 2 2 2 6 6 4 3 2 2 2 1 1 Tool/Special . | . . . . . . . . . . . . . . . . . . . Unused Backups 41 | . 1 4 3 . 2 5 . 1 5 . . 6 2 1 6 . . 5 Power 3 | . . 1 . . . . . . . . . 2 . . . . . . Propulsion 6 | . 1 . . . . . . . 3 . . . . . 1 . . 1 Utility 18 | . . 2 . . . 3 . 1 . . . 3 2 1 4 . . 2 Weapon 12 | . . 1 3 . 2 2 . . 2 . . 1 . . . . . 1 Tool/Special 2 | . . . . . . . . . . . . . . . 1 . . 1 Average Slot Usage (%) 89 | . 100 90 68 89 94 97 100 74 87 100 100 99 99 94 86 25 21 13 Engine 5 | . 14 14 9 8 4 2 9 2 . . . . . . 1 . . . Core 3 | . . . . . 4 6 . 4 6 7 7 6 6 5 . . . . Treads 13 | . 28 28 18 18 21 3 10 22 17 . . . . . 3 . . . Leg 10 | . . . . . . 23 16 . 6 30 30 29 26 22 13 . . . Device 4 | . 14 5 . 8 14 3 . . . . . . 6 1 2 . 2 . Storage 8 | . 14 14 9 9 9 9 9 7 7 7 7 7 6 6 4 . . . Hackware 13 | . . . . . . 17 27 14 19 23 23 23 25 25 33 21 10 3 Protection 4 | . . . 7 8 8 5 . 3 2 7 7 7 6 10 5 . . . Energy Gun 1 | . 1 . . . 8 8 5 2 4 . . . . . . . . . Energy Cannon 4 | . . 21 3 . . . . . . . . . . . . . . . Ballistic Gun 7 | . 10 . . . 9 16 21 14 13 15 23 16 1 9 . . . . Ballistic Cannon 5 | . 16 6 20 26 9 . . . . . . 1 5 1 4 . . . Impact Weapon 1 | . . . . . . . . . 2 . . 1 6 4 4 . . . Peak Build Rating 100 | 7 8 12 21 26 32 38 33 42 50 50 50 56 65 73 100 31 33 31 Average Rating 34 | 4 7 11 17 23 28 29 29 28 35 49 49 49 63 61 87 30 23 22 On Entrance 31 | . 7 8 12 21 26 32 29 30 21 50 49 50 56 65 72 25 31 8 Avg Prop Armor Cover (%) 12 | . . . . 7 9 6 . . . . . . . . 12 . . 21 Naked Turns 13 | . . . . . . . . . . . . . . . . . . 13 Heaviest Build 76 | 14 32 41 59 60 60 44 37 76 48 47 47 47 52 52 59 . 3 . Greatest Support 140 | 40 40 40 40 40 60 60 60 60 72 72 74 74 74 72 140 14 14 16 Greatest Overweight (x) 3 | . . 1 1 3 3 3 1 3 . . . . . 1 . . . . Average Overweight (x) . | . . . 1 2 1 . . . . . . . . . . . . . Largest Inventory Capacity 15 | 8 15 15 15 15 15 15 15 15 15 15 15 15 15 15 15 5 5 5 Average Capacity 14 | 7 12 15 15 15 15 15 15 15 15 15 15 15 15 15 14 5 5 5 Most Carried 15 | 7 14 15 15 15 15 15 15 15 15 15 15 15 15 15 15 5 5 5 Average Carried 13 | 3 10 14 14 12 14 14 14 13 14 15 14 14 14 14 14 4 4 4 Final Capacity 15 | 8 15 15 15 15 15 15 15 15 15 15 15 15 15 15 5 5 5 5 Final Carried 15 | 6 14 15 14 15 15 15 15 13 15 15 15 15 15 15 5 5 5 5 Class Distribution -------------------- 34% | Mutant 21% | Botlord-Mutant 13% | Tank 6% | Scavenger-Tank 6% | Scavenger-Mutant 4% | Scavenger-Gunner 4% | Bothacker-Gunner 3% | Bothacker-Mutant Dominant Class ---------------- Mutant | -10/Materials Mutant | -10/Subcaves Tank | -8/Materials Tank | -8/Garrison Scavenger-Tank | -8/Materials Bothacker-Mutant | -8/Garrison Bothacker-Gunner | -8/Materials Scavenger-Mutant | -8/Garrison Scavenger-Mutant | -7/Factory Tank | -7/Waste Tank | -7/Factory Botlord-Tank | -7/Garrison Botlord-Mutant | -6/Factory Botlord-Mutant | -6/Garrison Botlord-Mutant | -5/Factory Mutant | -4/Factory Sprinter | -4/Garrison Mutant | -3/Research Resources | -11 -10 -10 -8 -8 -8 -8 -8 -8 -7 -7 -7 -7 -6 -6 -5 -4 -4 -3 ----------- Run | Yrd Mat Sub Mat Gar Mat Gar Mat Gar Fac Was Fac Gar Fac Gar Fac Fac Gar Res Matter Collected 5683 | 289 171 269 . 545 349 813 60 372 589 . . 936 5 874 214 . 92 105 Remotely . | . . . . . . . . . . . . . . . . . . . Salvage Created 6312 | 126 287 545 . 433 364 1145 120 520 691 . . 858 . 775 326 . 122 . Parts 324 | 8 20 35 . 14 22 64 8 23 28 . . 48 . 29 10 . 15 . Haulers Intercepted 7 | . 1 . . . 2 . . . 3 . . . . . 1 . . . Recyclers Shooed 2 | . 1 . . . . . . . . . . . . . 1 . . . Parts Field Recycled . | . . . . . . . . . . . . . . . . . . . Retrieved Matter . | . . . . . . . . . . . . . . . . . . . Parts Self-Destructed 6 | . . 6 . . . . . . . . . . . . . . . . Prevented . | . . . . . . . . . . . . . . . . . . . Parts Restored . | . . . . . . . . . . . . . . . . . . . Kills | -11 -10 -10 -8 -8 -8 -8 -8 -8 -7 -7 -7 -7 -6 -6 -5 -4 -4 -3 ------- Run | Yrd Mat Sub Mat Gar Mat Gar Mat Gar Fac Was Fac Gar Fac Gar Fac Fac Gar Res Combat Hostiles Destroyed 162 | . 10 17 . 19 4 30 2 16 10 . . 20 1 20 5 . 8 . Melee 5 | . . . . . . . . . 3 . . . . 2 . . . . Guns 77 | . 4 . . . 1 26 2 9 6 . . 20 . 9 . . . . Cannons 37 | . 6 10 . 13 3 . . . . . . . 1 2 2 . . . AOE 38 | . . 6 . 6 . 2 . 7 1 . . . . 6 2 . 8 . Classes Destroyed 20 | 2 4 3 . 3 2 1 . 3 . . . . . . 1 . 1 . Worker 5 | . . . . . 1 . 1 . 1 . . . . . 2 . . . Builder 2 | . . . . . 1 . . . 1 . . . . . . . . . Tunneler 3 | 2 . . . . . . . . 1 . . . . . . . . . Hauler 7 | . 1 . . . 2 . . . 3 . . . . . 1 . . . Recycler 4 | 1 . . . . 1 . . . 2 . . . . . . . . . Operator 1 | . 1 . . . . . . . . . . . . . . . . . Turret 2 | . . 2 . . . . . . . . . . . . . . . . Watcher 1 | . . . . . . . . . . . . . . . 1 . . . Swarmer 50 | . 6 6 . 3 . 10 . . 1 . . 9 . 11 . . 4 . Cutter 4 | . . . . . . . . . . . . . . . . . 4 . Grunt 41 | . 4 . . 8 2 7 . 8 2 . . 6 . 2 2 . . . Brawler 3 | . . . . 2 . . . . . . . . . 1 . . . . Duelist 1 | . . . . . . . . 1 . . . . . . . . . . Protector 1 | . . . . . . . . 1 . . . . . . . . . . Sentry 21 | . . 1 . 3 1 4 2 1 3 . . 4 . 2 . . . . Demolisher 1 | . . . . . . . . 1 . . . . . . . . . . Specialist 6 | . . . . . . 3 . . . . . 1 . 2 . . . . Hunter 10 | . . . . 2 1 3 . . 2 . . . . 2 . . . . Programmer 14 | . . . . 1 . 3 . 4 2 . . . 1 . 3 . . . Subdweller 10 | . . 10 . . . . . . . . . . . . . . . . Best Kill Streak 9 | 3 3 6 . 6 7 5 1 9 3 . . 4 1 5 2 . 4 . Combat Bots Only 9 | . 3 4 . 6 3 5 1 9 2 . . 4 1 5 2 . 4 . Max Kills in Single Turn 3 | 1 1 2 . 3 2 2 1 2 1 . . 1 1 3 1 . 3 . Gunslinging 1 | . . . . . . 1 . . . . . . . . . . . . Exploded 3 | . . 2 . 3 . 1 . 2 1 . . . . 3 1 . 3 . Melee 1 | . . . . . . . . . 1 . . . . 1 . . . . Uniques/NPCs Destroyed . | . . . . . . . . . . . . . . . . . . . Combat | -11 -10 -10 -8 -8 -8 -8 -8 -8 -7 -7 -7 -7 -6 -6 -5 -4 -4 -3 -------- Run | Yrd Mat Sub Mat Gar Mat Gar Mat Gar Fac Was Fac Gar Fac Gar Fac Fac Gar Res Hostile Shots Fired 1607 | . 44 62 . 83 14 207 6 106 141 . 9 200 18 201 305 2 56 153 Missed 524 | . 16 18 . 24 4 52 2 40 45 . 6 58 5 45 108 . 23 78 Hits 1083 | . 28 44 . 59 10 155 4 66 96 . 3 142 13 156 197 2 33 75 Melee 6 | . . . . . . . . . . . . . . 1 . . 5 . Projectile 1077 | . 28 44 . 59 10 155 4 66 96 . 3 142 13 155 197 2 28 75 AOE 8 | . . . . . . . . 6 1 . . . . . . . 1 . Critical Strikes 32 | . . 1 . . . 9 . 2 1 . . 2 . 4 4 . 2 7 Part Disruptions 4 | . . . . . . . . . . . . . . 3 1 . . . Damage Taken 15714 | . 276 787 . 893 163 2080 60 1215 1164 . 33 1300 153 1897 3015 43 1032 1603 Core 4542 | . 53 185 . 76 . 299 . 132 244 . . 153 10 422 814 21 817 1316 Absorbed by Shields 652 | . . . . . . . . . . . . . 54 520 . . . 78 Redirected to Shielding 155 | . . . . . . . . . . . . 9 6 127 13 . . . Ignored by Resistances 201 | . . . . . . . . . . . 11 166 . . 24 . . . Regen/Repaired (Parts) 517 | . . . . . 104 . . . 197 . 53 . 163 . . . . . Core Remaining (%) 35 | 100 . 4 . . . . . 7 . . . 43 . 49 18 . 27 . Volleys Fired 503 | 3 35 50 . 48 13 81 4 45 36 4 . 61 12 64 42 . 5 . Largest 3 | 2 2 2 . 3 3 3 3 3 3 1 . 3 1 3 1 . 1 . Hottest 165 | 60 60 160 . 99 158 165 96 98 105 5 . 84 40 91 80 . 30 . Shots Fired 984 | 6 51 75 . 132 39 215 12 99 46 4 . 160 12 86 42 . 5 . Gun 609 | 6 22 1 . . 15 210 12 91 44 . . 158 . 50 . . . . Cannon 323 | . 29 68 . 127 24 . . . . . . . 12 28 35 . . . Launcher 37 | . . 6 . 5 . 5 . 8 . . . . . 5 3 . 5 . Special 15 | . . . . . . . . . 2 4 . 2 . 3 4 . . . Kinetic 697 | 3 45 24 . 127 24 95 8 77 11 . . 158 12 78 35 . . . Thermal 211 | 3 6 49 . . 15 106 . . 32 . . . . . . . . . Explosive 33 | . . 2 . 5 . 5 . 8 . . . . . 5 3 . 5 . Electromagnetic 28 | . . . . . . 9 4 14 1 . . . . . . . . . Robot Hit Streak 33 | 4 5 12 . 8 7 20 11 11 20 6 . 33 4 13 10 . 3 . Robot Miss Streak 4 | . 4 3 . 4 3 4 1 3 3 . . 4 1 3 2 . 1 . Penetration Max 1 | . . . . . . . . 1 . . . . . . . . . . Secondary Targets 19 | . . . . . . 12 . 1 . . . 4 . 2 . . . . Max Gunslinging Chain 2 | . . . . . . 2 . 1 . . . 1 . 1 . . . . Shots Hit Robots 644 | 4 28 36 . 77 19 128 11 64 53 4 . 95 9 83 32 . 1 . Core Hits 307 | 4 16 24 . 36 13 49 4 34 31 . . 38 1 29 14 . 13 1 Critical Kills 3 | . . 1 . . . . . . 1 . . 1 . . . . . . Critical Parts Destroyed 6 | . . . . . . . . 2 1 . . 1 . . 2 . . . Critical Strikes 27 | . 2 1 . 4 1 4 1 2 2 . . 2 . 5 3 . . . Burn 4 | . . . . . 1 3 . . . . . . . . . . . . Meltdown 1 | . . 1 . . . . . . . . . . . . . . . . Destroy 5 | . . . . . . 1 . 2 . . . 2 . . . . . . Blast 11 | . 2 . . 4 . . . . . . . . . 4 1 . . . Corrupt 1 | . . . . . . . 1 . . . . . . . . . . . Smash 5 | . . . . . . . . . 2 . . . . 1 2 . . . Melee Attacks 108 | . . . . . . 2 . 1 22 . . 3 11 35 34 . . . Impact 105 | . . . . . . . . . 22 . . 3 11 35 34 . . . Slashing . | . . . . . . . . . . . . . . . . . . . Piercing . | . . . . . . . . . . . . . . . . . . . Sneak Attacks 18 | . . . . . . . . . 9 . . . . 3 6 . . . Combat Hostiles 2 | . . . . . . . . . 2 . . . . . . . . . Follow-up Attacks . | . . . . . . . . . . . . . . . . . . . Damage Inflicted 17881 | 55 421 1400 . 2218 411 2521 161 1767 1790 . . 1789 299 2964 1534 . 550 1 Guns 7247 | 48 116 . . . 124 2296 157 1105 895 . . 1789 . 717 . . . . Cannons 4152 | . 288 775 . 1529 270 . . . . . . . 299 491 500 . . . Explosions 3618 | . . 625 . 689 . 225 . 652 56 . . . . 544 345 . 482 . Melee 2643 | . . . . . . . . . 788 . . . . 1172 683 . . . Ramming 221 | 7 17 . . . 17 . 4 10 51 . . . . 40 6 . 68 1 Kinetic 8789 | 14 352 637 . 1529 270 892 112 1038 149 . . 1789 299 1208 500 . . . Thermal 2956 | 34 52 599 . . 124 1361 . . 786 . . . . . . . . . Explosive 3101 | . . 164 . 689 . 225 . 652 . . . . . 544 345 . 482 . Electromagnetic 171 | . . . . . . 43 45 67 16 . . . . . . . . . Impact 2643 | . . . . . . . . . 788 . . . . 1172 683 . . . Slashing . | . . . . . . . . . . . . . . . . . . . Piercing . | . . . . . . . . . . . . . . . . . . . Highest Corruption 25 | . . . . 1 1 5 5 14 1 6 6 11 1 5 4 . 25 11 Average Corruption 4 | . . . . 1 1 4 5 10 1 6 6 8 1 1 3 . 9 4 Corruption Purged 5 | . . . . . . . . . 1 . . . . . 4 . . . Corruption Blocked . | . . . . . . . . . . . . . . . . . . . Effects 168 | . . . . . 2 37 7 23 3 3 4 47 2 13 18 . 4 5 Message Errors 45 | . . . . . . 8 4 6 1 . 2 11 1 4 4 . 2 2 Matter Fused 40 | . . . . . . 12 1 6 2 . 1 9 1 3 4 . 1 . Heat Flow Errors 19 | . . . . . 1 4 1 2 . . 1 5 . 2 3 . . . Energy Discharges 14 | . . . . . . 5 . 1 . 1 . 4 . 1 . . . 2 Parts Rejected 4 | . . . . . . . . 1 . 1 . . . 1 1 . . . Parts Fused 1 | . . . . . . . . . . . . 1 . . . . . . Data Loss (minor) 18 | . . . . . . 5 1 5 . 1 . 4 . 1 . . . 1 Data Loss (major) 10 | . . . . . 1 2 . . . . . 3 . . 4 . . . Misfires 4 | . . . . . . 1 . 1 . . . 2 . . . . . . Alerts 5 | . . . . . . . . . . . . 1 . 1 2 . 1 . Misdirections 3 | . . . . . . . . 1 . . . 2 . . . . . . Weapon Failures 5 | . . . . . . . . . . . . 5 . . . . . . Overload Shots . | . . . . . . . . . . . . . . . . . . . Overflow Damage 804 | . . 82 . 15 . . . . 258 . . . 36 218 154 . 41 . Projectiles 72 | . . 17 . . . . . . . . . . 36 9 10 . . . Explosions 148 | . . 65 . 15 . . . . 27 . . . . . . . 41 . Melee 584 | . . . . . . . . . 231 . . . . 209 144 . . . Knockbacks 49 | . 3 . . 18 3 . . . 2 . . . 6 6 11 . . . Impact 7 | . 1 . . . . . . . 2 . . . . 2 2 . . . Kinetic 37 | . 2 . . 14 3 . . . . . . . 6 3 9 . . . Secondary 5 | . . . . 4 . . . . . . . . . 1 . . . . Self-Inflicted Damage 393 | . . . . 5 . 15 . 42 50 . . . . 118 3 . 160 . Shots 11 | . . . . 1 . 1 . 2 1 . . . . 3 . . 3 . Rammed 20 | 1 2 . . . 2 . . 2 6 . . . . . 1 . 4 2 Targets Rammed 31 | 1 2 . . . 2 . 1 2 7 . . . . 9 1 . 4 2 Kicked 9 | . . . . . . . . . . . . . . 9 . . . . Crushed 2 | . . . . . . . 1 . 1 . . . . . . . . . Highest Temperature 348 | . 20 227 . 133 206 268 250 276 288 . 152 348 . 149 199 . . . Average Temperature 64 | . 6 61 . 38 35 76 70 45 87 . 76 73 . 46 42 . . . Received Heat Transfer 3168 | . 78 192 . 360 45 351 18 216 201 . . 297 12 177 978 . 18 225 Effects 2 | . . . . . . . . . . . . 2 . . . . . . Short Circuit 1 | . . . . . . . . . . . . 1 . . . . . . Damage (minor) 1 | . . . . . . . . . . . . 1 . . . . . . Siege Activations . | . . . . . . . . . . . . . . . . . . . Martial Activations . | . . . . . . . . . . . . . . . . . . . Shielding Activations . | . . . . . . . . . . . . . . . . . . . Robots Disrupted . | . . . . . . . . . . . . . . . . . . . Combat Hostiles . | . . . . . . . . . . . . . . . . . . . Robots Corrupted 8 | . . . . . . . . . 1 . . . . 5 2 . . . Combat Hostiles 6 | . . . . . . . . . . . . . . 5 1 . . . Parts Fried 9 | . . . . . . . . . 3 . . . . 6 . . . . Impact Corruptions 22 | . . . . . . . . . 6 . . . . 9 7 . . . Robots Melted 3 | . . 1 . . . 2 . . . . . . . . . . . . Combat Hostiles 3 | . . 1 . . . 2 . . . . . . . . . . . . Parts Melted 12 | . . 4 . . . 6 . . 2 . . . . . . . . . Heat Transferred 5678 | 75 125 814 . . 370 2644 . . 1650 . . . . . . . . . Parts Sabotaged . | . . . . . . . . . . . . . . . . . . . Parts Stolen . | . . . . . . . . . . . . . . . . . . . Parts Stripped . | . . . . . . . . . . . . . . . . . . . Power Chain Reactions 1 | . . . . . . . . . 1 . . . . . . . . . Alert | -11 -10 -10 -8 -8 -8 -8 -8 -8 -7 -7 -7 -7 -6 -6 -5 -4 -4 -3 ------- Run | Yrd Mat Sub Mat Gar Mat Gar Mat Gar Fac Was Fac Gar Fac Gar Fac Fac Gar Res Maximum Alert Level 3 | . . . . 2 1 3 2 2 1 . . 3 2 3 2 . . . Low Security (%) 36 | 100 100 . 100 23 . 2 . . 86 100 100 35 . 5 8 100 100 100 Level 1 28 | . . . . 20 100 6 83 36 13 . . 13 75 12 91 . . . Level 2 23 | . . . . 56 . 27 16 63 . . . 33 24 73 . . . . Level 3 11 | . . . . . . 63 . . . . . 17 . 8 . . . . Level 4 . | . . . . . . . . . . . . . . . . . . . Level 5 . | . . . . . . . . . . . . . . . . . . . High Security . | . . . . . . . . . . . . . . . . . . . Max Security . | . . . . . . . . . . . . . . . . . . . Peak Influence 1080 | 15 80 . 11 635 366 1080 526 600 315 18 22 873 459 757 403 60 182 79 Initial 526 | . . . 11 . 309 180 526 208 315 18 . . 457 169 396 60 3 79 Average 330 | 2 23 . 1 364 318 752 375 455 84 4 4 405 354 530 268 15 115 27 Influence Increases 5699 | 15 273 190 . 675 148 970 74 482 333 . 22 923 103 748 476 15 222 30 Destroy 0b10 Robot/C 3180 | . 200 180 . 420 80 600 40 320 200 . . 440 20 400 120 . 160 . Destroy 0b10 Robot/NC 140 | 15 10 . . . 25 . 5 5 40 . . . . 20 20 . . . Destroy Leader 316 | . 32 10 . 20 34 30 20 20 56 . . 20 10 30 24 . 10 . Allied During Kill 31 | . . . . 15 . . . 2 . . . 8 . . 6 . . . Successful Hack 260 | . 31 . . 21 7 14 9 . 21 . 22 30 18 12 59 . 16 . Disable Machine 105 | . . . . . . 15 . . . . . . . . 90 . . . Anti-Garrison Action 950 | . . . . 150 . 250 . 50 . . . 350 . 150 . . . . Destroy Structure 402 | . . . . 19 2 46 . 70 16 . . 30 10 61 112 . 36 . Lose Combat Pursuer 315 | . . . . 30 . 15 . 15 . . . 45 45 75 45 15 . 30 Influence Decreases 5689 | 15 273 168 22 40 506 167 834 202 881 52 22 50 734 233 1109 134 85 162 Entered New Map 2398 | . . . 11 . 326 97 554 112 285 34 . . 416 73 361 64 2 63 Time Decay 2288 | 15 273 158 11 . 170 . 130 . 496 18 22 . 318 . 518 70 . 89 Lost Part 593 | . . 10 . 20 10 70 . 50 80 . . 30 . 100 130 . 83 10 Lost Ally 260 | . . . . 20 . . . 40 20 . . 20 . 60 100 . . . Purge Threat 150 | . . . . . . . 150 . . . . . . . . . . . Squads Dispatched 19 | . . . . . 1 . . . 5 . . . 2 . 7 2 . 2 Investigation 3 | . . . . . . . . . 1 . . . 1 . . . . 1 Extermination 10 | . . . . . . . . . 3 . . . 1 . 4 1 . 1 Reinforcement 6 | . . . . . 1 . . . 1 . . . . . 3 1 . . Assault . | . . . . . . . . . . . . . . . . . . . Garrison . | . . . . . . . . . . . . . . . . . . . Intercept . | . . . . . . . . . . . . . . . . . . . Searches Triggered . | . . . . . . . . . . . . . . . . . . . Construction Impeded 1 | . . . . . . . . . 1 . . . . . . . . . Haulers Reinforced 1 | . . . . . . . . . . . . . . . 1 . . . Active Scanning Responses . | . . . . . . . . . . . . . . . . . . . Cargo Convoy Interrupts 1 | . . . . . . . . . . . . . . . 1 . . . Stealth | -11 -10 -10 -8 -8 -8 -8 -8 -8 -7 -7 -7 -7 -6 -6 -5 -4 -4 -3 --------- Run | Yrd Mat Sub Mat Gar Mat Gar Mat Gar Fac Was Fac Gar Fac Gar Fac Fac Gar Res Distress Signals 7 | . 2 . . . 1 . 1 . . . . . . . . 1 . 2 Communications Jammed 5 | . . . . . . . . . 1 . . . 4 . . . . . Distress Signals 4 | . . . . . . . . . . . . . 4 . . . . . Times Spotted 249 | . 17 19 . 24 6 31 7 21 14 4 3 23 5 27 22 3 9 14 Peak Tracking Total 12 | . 4 5 . 5 4 5 4 6 3 2 3 4 3 7 6 2 4 12 Tactical Retreats 15 | . . . . 2 . 1 . 1 . . . 2 1 2 3 1 . 2 Traps | -11 -10 -10 -8 -8 -8 -8 -8 -8 -7 -7 -7 -7 -6 -6 -5 -4 -4 -3 ------- Run | Yrd Mat Sub Mat Gar Mat Gar Mat Gar Fac Was Fac Gar Fac Gar Fac Fac Gar Res Traps Triggered 35 | . . 2 . 7 . 4 1 . 2 . 1 3 1 3 4 . 3 4 Indirectly . | . . . . . . . . . . . . . . . . . . . Trap Hack Attempts . | . . . . . . . . . . . . . . . . . . . Triggered . | . . . . . . . . . . . . . . . . . . . Disarmed . | . . . . . . . . . . . . . . . . . . . Reprogrammed . | . . . . . . . . . . . . . . . . . . . Reused . | . . . . . . . . . . . . . . . . . . . Traps Extracted . | . . . . . . . . . . . . . . . . . . . Installed . | . . . . . . . . . . . . . . . . . . . Triggered . | . . . . . . . . . . . . . . . . . . . Machines | -11 -10 -10 -8 -8 -8 -8 -8 -8 -7 -7 -7 -7 -6 -6 -5 -4 -4 -3 ---------- Run | Yrd Mat Sub Mat Gar Mat Gar Mat Gar Fac Was Fac Gar Fac Gar Fac Fac Gar Res Machines Disabled 24 | . . 4 . 2 . 4 . 1 . . . 5 . 2 6 . . . Max in Single Turn 4 | . . 3 . 1 . 1 . 1 . . . 1 . 1 4 . . . Garrison Relay 13 | . . . . 2 . 3 . 1 . . . 5 . 2 . . . . Machines Repaired . | . . . . . . . . . . . . . . . . . . . Machines Dismantled . | . . . . . . . . . . . . . . . . . . . Machines Sabotaged . | . . . . . . . . . . . . . . . . . . . Overloaded Fab Kills . | . . . . . . . . . . . . . . . . . . . Hacking | -11 -10 -10 -8 -8 -8 -8 -8 -8 -7 -7 -7 -7 -6 -6 -5 -4 -4 -3 --------- Run | Yrd Mat Sub Mat Gar Mat Gar Mat Gar Fac Was Fac Gar Fac Gar Fac Fac Gar Res Machines Accessed 54 | . 7 2 1 3 5 2 2 . 5 . 2 3 7 3 8 2 1 1 Terminals 31 | . 7 . . 3 3 2 1 . 1 . . 3 2 3 5 . 1 . Fabricators 5 | . . . . . . . . . 1 . . . 2 . 1 1 . . Repair Stations 5 | . . . . . 1 . . . 2 . 1 . 1 . . . . . Recycling Units 4 | . . . . . . . . . . . . . 1 . 2 . . 1 Scanalyzers 1 | . . . . . . . . . 1 . . . . . . . . . Garrison Access 6 | . . . 1 . 1 . 1 . . . 1 . 1 . . 1 . . Total Hacks 151 | . 29 5 1 7 13 3 7 . 28 . 3 4 20 7 18 2 2 2 Successful 78 | . 13 5 1 2 5 2 3 . 17 . 3 3 15 1 6 1 1 . Failed 73 | . 16 . . 5 8 1 4 . 11 . . 1 5 6 12 1 1 2 Catastrophic 15 | . . . . 1 1 1 2 . 1 . . . . 3 2 1 1 2 Database Lockouts . | . . . . . . . . . . . . . . . . . . . Manual 55 | . 27 . . . 8 1 . . 1 . . 1 6 1 8 . 2 . Terminals 88 | . 29 . . 7 9 3 6 . 6 . . 4 5 7 10 . 2 . Fabricators 15 | . . . . . . . . . 3 . . . 7 . 4 1 . . Repair Stations 21 | . . . . . 3 . . . 10 . 2 . 6 . . . . . Recycling Units 7 | . . . . . . . . . . . . . 1 . 4 . . 2 Scanalyzers 9 | . . . . . . . . . 9 . . . . . . . . . Garrison Access 6 | . . . 1 . 1 . 1 . . . 1 . 1 . . 1 . . Terminal Hacks 30 | . 5 5 . 2 2 2 2 . . . . 3 2 1 5 . 1 . Record 4 | . . 4 . . . . . . . . . . . . . . . . Part Schematic 4 | . 2 . . . . . . . . . . . 1 . 1 . . . Robot Analysis 2 | . 1 . . . 1 . . . . . . . . . . . . . Open Door 2 | . . . . 1 . . . . . . . 1 . . . . . . Emergency Access Points 2 | . . . . 1 . . . . . . . 1 . . . . . . Machine Index 2 | . . . . . . . 1 . . . . . . . 1 . . . Unreport Threat 1 | . . . . . . . 1 . . . . . . . . . . . Locate Traps 5 | . 2 . . . 1 . . . . . . . 1 . 1 . . . Hauler Manifests 1 | . . . . . . . . . . . . . . . 1 . . . Registered Components 1 | . . . . . . . . . . . . . . . 1 . . . Garrison Registry 3 | . . . . . . 1 . . . . . 1 . . . . 1 . Patrol Navigation 1 | . . . . . . . . . . . . . . 1 . . . . Security Stations 1 | . . . . . . 1 . . . . . . . . . . . . Proto ID Catalog 1 | . . 1 . . . . . . . . . . . . . . . . Fabricator Hacks 3 | . . . . . . . . . 1 . . . 2 . . . . . Network Status 1 | . . . . . . . . . . . . . 1 . . . . . Load Schematic 2 | . . . . . . . . . 1 . . . 1 . . . . . Repair Station Hacks 16 | . . . . . 2 . . . 7 . 2 . 5 . . . . . Scan Component 10 | . . . . . 1 . . . 5 . 1 . 3 . . . . . Repair 6 | . . . . . 1 . . . 2 . 1 . 2 . . . . . Recycling Unit Hacks . | . . . . . . . . . . . . . . . . . . . Scanalyzer 9 | . . . . . . . . . 9 . . . . . . . . . Insert Component 1 | . . . . . . . . . 1 . . . . . . . . . Analyze 1 | . . . . . . . . . 1 . . . . . . . . . Retrieve Study 7 | . . . . . . . . . 7 . . . . . . . . . Garrison Access Hacks 6 | . . . 1 . 1 . 1 . . . 1 . 1 . . 1 . . Unlock Access 6 | . . . 1 . 1 . 1 . . . 1 . 1 . . 1 . . Unauthorized Hacks 14 | . 8 . . . . . . . . . . . 5 . 1 . . . Terminals 9 | . 8 . . . . . . . . . . . . . 1 . . . Botnet 3 | . 2 . . . . . . . . . . . . . 1 . . . Skim 6 | . 6 . . . . . . . . . . . . . . . . . Fabricators 4 | . . . . . . . . . . . . . 4 . . . . . Report 1 | . . . . . . . . . . . . . 1 . . . . . Liberate 1 | . . . . . . . . . . . . . 1 . . . . . Haulers 1 | . . . . . . . . . . . . . 1 . . . . . Recompile 1 | . . . . . . . . . . . . . 1 . . . . . Repair Stations . | . . . . . . . . . . . . . . . . . . . Recycling Units 1 | . . . . . . . . . . . . . 1 . . . . . Reject 1 | . . . . . . . . . . . . . 1 . . . . . Scanalyzers . | . . . . . . . . . . . . . . . . . . . Garrison Access . | . . . . . . . . . . . . . . . . . . . Data Cores Recovered 1 | . 1 . . . . . . . . . . . . . . . . . Used . | . . . . . . . . . . . . . . . . . . . Hacking Detections 42 | . 7 . . 3 4 2 1 . 5 . 1 2 5 3 6 1 1 1 Full Trace Events 5 | . 1 . . 1 . . . . 1 . . . . 1 . . . 1 Feedback Events 1 | . . . . . . . . . . . . . . . . . . 1 Corruption 1 | . . . . . . . . . . . . . . . . . . 1 Feedback Blocked . | . . . . . . . . . . . . . . . . . . . Robot Schematics Acquired . | . . . . . . . . . . . . . . . . . . . Robots Built . | . . . . . . . . . . . . . . . . . . . Authchips . | . . . . . . . . . . . . . . . . . . . Time . | . . . . . . . . . . . . . . . . . . . Total Robot Build Rating . | . . . . . . . . . . . . . . . . . . . Part Schematics Acquired 4 | . 2 . . . . . . . . . . . 1 . 1 . . . Parts Built . | . . . . . . . . . . . . . . . . . . . Authchips . | . . . . . . . . . . . . . . . . . . . Time . | . . . . . . . . . . . . . . . . . . . Total Part Build Rating . | . . . . . . . . . . . . . . . . . . . Part Studies Acquired 7 | . . . . . . . . . 7 . . . . . . . . . Parts Repaired 6 | . . . . . 1 . . . 2 . 1 . 2 . . . . . Time 303 | . . . . . 26 . . . 79 . 22 . 176 . . . . . Parts Recycled . | . . . . . . . . . . . . . . . . . . . Recycled Matter . | . . . . . . . . . . . . . . . . . . . Retrieved Matter . | . . . . . . . . . . . . . . . . . . . Retrieved Components . | . . . . . . . . . . . . . . . . . . . Parts Scanalyzed 1 | . . . . . . . . . 1 . . . . . . . . . Part Schematics Acquired . | . . . . . . . . . . . . . . . . . . . Parts Damaged . | . . . . . . . . . . . . . . . . . . . Bothacking | -11 -10 -10 -8 -8 -8 -8 -8 -8 -7 -7 -7 -7 -6 -6 -5 -4 -4 -3 ------------ Run | Yrd Mat Sub Mat Gar Mat Gar Mat Gar Fac Was Fac Gar Fac Gar Fac Fac Gar Res Used RIF Installer 10 | . . . . 2 . 2 . 2 . . . 1 . 2 . . 1 . Hotswap 1 | . . . . . . . . . . . . . . 1 . . . . Command Fork 1 | . . . . 1 . . . . . . . . . . . . . . Signal Jammer 1 | . . . . . . 1 . . . . . . . . . . . . Robot Detection 1 | . . . . . . 1 . . . . . . . . . . . . Autooverride 2 | . . . . . . . . 1 . . . 1 . . . . . . Autoassimilate 2 | . . . . . . . . 1 . . . . . . . . 1 . Crosswire 1 | . . . . . . . . . . . . . . 1 . . . . Robots Hacked 24 | . . . . . . 1 . 2 3 4 . 2 . 7 5 . . . Non-combat . | . . . . . . . . . . . . . . . . . . . Combat 24 | . . . . . . 1 . 2 3 4 . 2 . 7 5 . . . Autooverrided 8 | . . . . . . . . 1 1 . . . . 4 2 . . . Autoassimilated 3 | . . . . . . . . . . . . . . 2 1 . . . Robot Hacks Applied 14 | . . . . . . 1 . 1 2 4 . 2 . 2 2 . . . ignore_targets 4 | . . . . . . . . . . 4 . . . . . . . . mark_system 1 | . . . . . . . . . . . . . . 1 . . . . broadcast_data 1 | . . . . . . . . . . . . 1 . . . . . . reboot_system 2 | . . . . . . 1 . . 1 . . . . . . . . . overwrite_iff 2 | . . . . . . . . . 1 . . 1 . . . . . . streamctrl_high 1 | . . . . . . . . 1 . . . . . . . . . . formatsys_high 3 | . . . . . . . . . . . . . . 1 2 . . . Relay Couplers Released 54 | . . . . 9 . 16 . 4 . . . 19 . 6 . . . . Machine Destruction 47 | . . . . 6 . 12 . 4 . . . 19 . 6 . . . . Programmers 7 | . . . . 3 . 4 . . . . . . . . . . . . Attached 14 | . . . . . . 2 . 1 3 . . 3 1 2 2 . . . Crosswired 5 | . . . . . . . . . . . . . . 5 . . . . Fabnet Peak Effective % . | . . . . . . . . . . . . . . . . . . . Robots Rewired 2 | . . . . 2 . . . . . . . . . . . . . . Allies Hacked . | . . . . . . . . . . . . . . . . . . . Hacks Repelled . | . . . . . . . . . . . . . . . . . . . Allies | -11 -10 -10 -8 -8 -8 -8 -8 -8 -7 -7 -7 -7 -6 -6 -5 -4 -4 -3 -------- Run | Yrd Mat Sub Mat Gar Mat Gar Mat Gar Fac Was Fac Gar Fac Gar Fac Fac Gar Res Total Allies 22 | . . . . 2 . . . 2 2 . . 2 2 7 5 . . . Largest Group 2 | . . . . 2 . . . 2 1 . . 1 2 1 2 . . . Highest-Rated Group 64 | . . . . 56 . . . 31 21 . . 20 64 41 58 . . . Highest-Rated Ally 49 | . . . . 31 . . . 16 21 . . 20 32 41 49 . . . Total Orders . | . . . . . . . . . . . . . . . . . . . Ally Attacks 70 | . . . . 16 . . . 12 5 . . 10 . 9 18 . . . Total Damage 1449 | . . . . 408 . . . 204 86 . . 243 . 164 344 . . . Kills 6 | . . . . 2 . . . 1 . . . 2 . . 1 . . . Allies Corrupted . | . . . . . . . . . . . . . . . . . . . Allies Melted . | . . . . . . . . . . . . . . . . . . . Intel | -11 -10 -10 -8 -8 -8 -8 -8 -8 -7 -7 -7 -7 -6 -6 -5 -4 -4 -3 ------- Run | Yrd Mat Sub Mat Gar Mat Gar Mat Gar Fac Was Fac Gar Fac Gar Fac Fac Gar Res Active Infowar (turns) 3177 | 27 922 1437 . . . . . . 791 . . . . . . . . . Seismic 2386 | 27 922 1437 . . . . . . . . . . . . . . . . T.N.C. 791 | . . . . . . . . . 791 . . . . . . . . . Robot Analysis Total 2 | . 1 . . . 1 . . . . . . . . . . . . . Derelict Logs Recovered 2 | . . 2 . . . . . . . . . . . . . . . . Drone Launches . | . . . . . . . . . . . . . . . . . . . Drone Recoveries . | . . . . . . . . . . . . . . . . . . . Exploration | -11 -10 -10 -8 -8 -8 -8 -8 -8 -7 -7 -7 -7 -6 -6 -5 -4 -4 -3 ------------- Run | Yrd Mat Sub Mat Gar Mat Gar Mat Gar Fac Was Fac Gar Fac Gar Fac Fac Gar Res Turns Passed 15936 | 109 922 3708 137 1042 358 1690 273 579 1801 102 95 1218 718 1090 1424 274 139 257 Spaces Moved 8837 | 55 407 1634 50 512 154 728 127 204 979 83 64 788 394 628 971 340 165 554 Core 323 | 7 . . . . . . . . . . . . . . 107 12 58 139 Treads 3499 | 46 407 1634 50 4 82 81 57 204 695 . . . . . 239 . . . Legs 3583 | . . . . . . 647 70 . 284 83 64 788 394 628 625 . . . Wheels 582 | 2 . . . 508 72 . . . . . . . . . . . . . Hover 338 | . . . . . . . . . . . . . . . . 328 9 1 Flight 512 | . . . . . . . . . . . . . . . . . 98 414 Fastest Speed 24 | 50 160 160 240 145 130 120 160 160 105 105 105 111 111 105 50 50 24 37 Average Speed 139 | 143 160 196 240 145 150 185 176 181 146 105 108 111 112 114 116 78 40 42 Slowest Speed 400 | 160 160 240 240 240 160 330 190 400 160 105 111 113 115 182 160 80 80 80 Overloaded Moves . | . . . . . . . . . . . . . . . . . . . Propulsion Burnouts . | . . . . . . . . . . . . . . . . . . . Robots Hopped 8 | . . . . 1 . . . . . . . . . . . . . 7 Potential Cave-ins . | . . . . . . . . . . . . . . . . . . . Cave-ins Triggered . | . . . . . . . . . . . . . . . . . . . Exploration Rate (%) 39 | 5 74 85 5 84 17 75 21 36 24 74 4 80 15 69 22 8 32 16 Regions Visited 18 Branch Regions 1 Pre-discovered Areas 1 | . 1 . . . . . . . . . . . . . . . . . Known Exits Taken 7 | . 1 . 1 . 1 . 1 . . . 1 . 1 . . 1 . . Unknown Exits Taken 3 | 1 . 1 . . . . . . . . . . . . 1 . . . Scrap Searched 8 | . . 8 . . . . . . . . . . . . . . . . Spaces Dug 62 | . . 1 . . . . . . 8 . . . 9 4 20 . 20 . Terrain Destroyed 268 | . . 62 . 6 1 19 . 39 14 . . . 10 27 63 . 27 . Melee 38 | . . . . . . . . . 8 . . . 9 4 17 . . . Projectile 25 | . . 9 . . 1 . . 1 . . . . 1 . 13 . . . AOE 205 | . . 53 . 6 . 19 . 38 6 . . . . 23 33 . 27 . Terrain Rammed 2 | . . . . . . . . . . . . . . . . . 2 . Walls Destroyed 2 | . . . . . . . . . . . . . . . . . 2 . Machines Disabled . | . . . . . . . . . . . . . . . . . . . Actions | -11 -10 -10 -8 -8 -8 -8 -8 -8 -7 -7 -7 -7 -6 -6 -5 -4 -4 -3 --------- Run | Yrd Mat Sub Mat Gar Mat Gar Mat Gar Fac Was Fac Gar Fac Gar Fac Fac Gar Res Total 11435 | 77 627 2068 67 705 252 903 166 334 1264 94 90 1003 638 846 1161 345 228 567 Wait 1305 | 1 170 349 1 70 46 13 20 41 141 6 21 96 195 62 69 3 1 . Move 8808 | 55 406 1633 50 508 154 727 127 203 979 82 64 786 394 626 970 340 163 541 Hop 7 | . . . . 1 . . . . . . . . . . . . . 6 Pick Up 128 | 9 7 11 5 6 7 14 1 5 26 . 2 13 7 6 6 1 1 1 Fast Attach 105 | 4 2 1 4 3 8 13 4 10 9 1 . 7 3 13 13 . 6 4 Attach 73 | 4 . 5 2 2 4 10 2 8 14 . 1 6 2 5 5 1 1 1 Detach 13 | 1 2 1 . . . 1 1 4 3 . . . . . . . . . Swap 67 | . 2 4 . 4 4 10 1 7 7 1 1 8 4 9 5 . . . Drop 145 | . 1 13 5 4 14 22 5 8 20 . 1 18 7 9 16 . . 2 Fire 503 | 3 35 50 . 48 13 81 4 45 36 4 . 61 12 64 42 . 5 . Melee 108 | . . . . . . 2 . 1 22 . . 3 11 35 34 . . . Ram 9 | . . . . . . . . . . . . . . . 1 . 6 2 Kick 9 | . . . . . . . . . . . . . . 9 . . . . Crush 14 | . 2 . . . 2 . 1 2 7 . . . . . . . . . Escape Stasis 129 | . . . . 48 . 10 . . . . . 5 3 8 . . 45 10 Rewire 12 | . . 1 . 11 . . . . . . . . . . . . . . Trap . | . . . . . . . . . . . . . . . . . . . Miscellaneous . | . . . . . . . . . . . . . . . . . . . Route ------- -11/Scrapyard -10/Materials (discovered 5 exits: [*Mat x3] / [*Min] / *Sub) -10/Subcaves (discovered 3 exits: *Mat x2 / *Rec) -8/Materials (discovered 2 exits: Sto / Gar) -8/Garrison (discovered 3 exits: *Mat x3) -8/Materials -8/Garrison (discovered 4 exits: *Fac x3 / *Mat) -8/Materials -8/Garrison -7/Factory -7/Waste -7/Factory -7/Garrison (discovered 3 exits: *Fac x3) -6/Factory -6/Garrison (discovered 3 exits: *Fac x3) -5/Factory (discovered 2 exits: *Fac x2) -4/Factory -4/Garrison (discovered 3 exits: *Res x3) -3/Research History --------- Turn | Location | Event 27 | -11/Scrapyard | Discovered new exit (range 14) 110 | -11/Scrapyard | Entered Materials 317 | -10/Materials | Build established: Mutant 343 | -10/Materials | Discovered new exit (range 3) 605 | -10/Materials | Discovered new exit (range 10) 696 | -10/Materials | Discovered new exit (range 10) 712 | -10/Materials | Identified exit to Subcaves 785 | -10/Materials | Learned Storage trap positions 809 | -10/Materials | Discovered new exit (range 16) 989 | -10/Materials | Learned location of Recycling (-8) 1032 | -10/Materials | Entered Subcaves 1033 | -10/Subcaves | Identified exit to Recycling 1035 | -10/Subcaves | Learned location of 1 exit from Materials 1072 | -10/Subcaves | Discovered new exit (range 6) 1903 | -10/Subcaves | Shifting Twisted Machinery released Sub. Power Source 1938 | -10/Subcaves | Shifting Twisted Machinery released Sub. Power Source 2212 | -10/Subcaves | Visited 4L-MR0's lab 2233 | -10/Subcaves | Found Tower Shield 2470 | -10/Subcaves | Core integrity fell below 50% 2544 | -10/Subcaves | Shifting Twisted Machinery released Sub. Beam Cannon 2580 | -10/Subcaves | Shifting Twisted Machinery released Scrap Shield 2955 | -10/Subcaves | Discovered new exit (range 4) 3264 | -10/Subcaves | Visited Clippyterm 3271 | -10/Subcaves | Learned Factory fabricator intel 3271 | -10/Subcaves | Learned Materials terminal intel 3507 | -10/Subcaves | Shifting Twisted Machinery released Sub. Monowheel 3509 | -10/Subcaves | Shifting Twisted Machinery released Barrage Gun 4465 | -10/Subcaves | Core integrity fell below 20% 4740 | -10/Subcaves | Entered Materials 4740 | -8/Materials | Evolved 4 slots: Propulsion x1, Utility x2, Weapon x1 4741 | -8/Materials | Identified exit to Storage 4742 | -8/Materials | Loaded intel: 12 terminal locations 4876 | -8/Materials | Identified exit to Garrison 4877 | -8/Materials | Entered Garrison 4909 | -8/Garrison | Triggered checkpoint 4954 | -8/Garrison | Garrison Relay disabled 5031 | -8/Garrison | Triggered checkpoint 5061 | -8/Garrison | Build established: Tank 5087 | -8/Garrison | Triggered checkpoint 5186 | -8/Garrison | Discovered new exit (range 10) 5331 | -8/Garrison | Triggered checkpoint 5397 | -8/Garrison | Triggered checkpoint 5481 | -8/Garrison | Installed Relay Interface Framework 5515 | -8/Garrison | Discovered new exit (range 14) 5599 | -8/Garrison | Triggered checkpoint 5626 | -8/Garrison | Discovered new exit (range 15) 5708 | -8/Garrison | Expanded RIF knowledge: Command Fork 5835 | -8/Garrison | Garrison Relay disabled 5919 | -8/Garrison | Entered Materials 6247 | -8/Materials | Repaired Lgt. Treads 6277 | -8/Materials | Identified exit to Garrison 6277 | -8/Materials | Entered Garrison 6315 | -8/Garrison | Triggered checkpoint 6348 | -8/Garrison | Build established: Scavenger-Tank 6383 | -8/Garrison | Triggered checkpoint 6386 | -8/Garrison | Garrison Relay disabled 6463 | -8/Garrison | Discovered new exit (range 6) 6671 | -8/Garrison | Triggered checkpoint 6805 | -8/Garrison | Discovered new exit (range 10) 6826 | -8/Garrison | Learned Factory security intel 6853 | -8/Garrison | Triggered checkpoint 6875 | -8/Garrison | Core integrity fell below 50% 6923 | -8/Garrison | Garrison Relay disabled 6951 | -8/Garrison | Discovered new exit (range 28) 6951 | -8/Garrison | Discovered new exit (range 63) 6951 | -8/Garrison | Discovered new exit (range 88) 6951 | -8/Garrison | Discovered new exit (range 55) 7229 | -8/Garrison | Build established: Bothacker-Mutant 7375 | -8/Garrison | Expanded RIF knowledge: Signal Jamming 7455 | -8/Garrison | Triggered checkpoint 7533 | -8/Garrison | Build established: Bothacker-Tank 7607 | -8/Garrison | Expanded RIF knowledge: Robot Detection 7617 | -8/Garrison | Triggered checkpoint 7679 | -8/Garrison | Garrison Relay disabled 7966 | -8/Garrison | Build established: Bothacker-Gunner 7967 | -8/Garrison | Entered Materials 8240 | -8/Materials | Identified exit to Garrison 8240 | -8/Materials | Entered Garrison 8291 | -8/Garrison | Expanded RIF knowledge: Autooverride 8358 | -8/Garrison | Triggered checkpoint 8374 | -8/Garrison | Garrison Relay disabled 8436 | -8/Garrison | Core integrity fell below 20% 8441 | -8/Garrison | Triggered checkpoint 8445 | -8/Garrison | System corruption reached 10% 8449 | -8/Garrison | Attached Tower Shield, gained temporary slots: Power, Propulsion x2, Utility x2, Weapon x2 8476 | -8/Garrison | Lost 3 parts (1p1n1u) 8477 | -8/Garrison | Destroyed 9 combat bots 8528 | -8/Garrison | Triggered checkpoint 8628 | -8/Garrison | Triggered checkpoint 8736 | -8/Garrison | Expanded RIF knowledge: Autoassimilate 8793 | -8/Garrison | Discovered new exit (range 12) 8819 | -8/Garrison | Entered Factory 8819 | -7/Factory | Evolved 2 slots: Propulsion x1, Utility x1 8821 | -7/Factory | Loaded intel: 6 fabricator locations 9054 | -7/Factory | Build established: Scavenger-Gunner 9468 | -7/Factory | Build established: Scavenger-Tank 9481 | -7/Factory | Repaired Lgt. Treads 9536 | -7/Factory | Repaired Broken Minigun 9887 | -7/Factory | Build established: Scavenger-Mutant 10607 | -7/Factory | Discovered new exit (range 6) 10620 | -7/Factory | Sucked down chute 10620 | -7/Factory | Entered Waste 10635 | -7/Waste | EMP discharged 10652 | -7/Waste | Spotted C-40 Crusher 10656 | -7/Waste | Spotted C-40 Crusher 10666 | -7/Waste | Spotted C-40 Crusher 10669 | -7/Waste | Spotted C-40 Crusher 10671 | -7/Waste | Spotted C-40 Crusher 10685 | -7/Waste | Build established: Tank 10708 | -7/Waste | Discovered new exit (range 10) 10722 | -7/Waste | Entered Factory 10775 | -7/Factory | Repaired Imp. Carbon-fiber Leg+ 10817 | -7/Factory | Identified exit to Garrison 10817 | -7/Factory | Entered Garrison 10863 | -7/Garrison | Triggered checkpoint 10905 | -7/Garrison | Triggered checkpoint 10965 | -7/Garrison | Garrison Relay disabled 11025 | -7/Garrison | Expanded RIF knowledge: Autooverride 11066 | -7/Garrison | Discovered new exit (range 12) 11141 | -7/Garrison | Triggered checkpoint 11190 | -7/Garrison | Discovered new exit (range 12) 11253 | -7/Garrison | Triggered checkpoint 11293 | -7/Garrison | Garrison Relay disabled 11311 | -7/Garrison | Triggered checkpoint 11327 | -7/Garrison | Core integrity fell below 50% 11334 | -7/Garrison | Rescued a captive Derelict 11387 | -7/Garrison | System corruption reached 10% 11413 | -7/Garrison | Triggered checkpoint 11495 | -7/Garrison | Lost 3 parts (1p1u1w) 11518 | -7/Garrison | Garrison Relay disabled 11555 | -7/Garrison | Discovered new exit (range 11) 11562 | -7/Garrison | Discovered new exit (range 58) 11562 | -7/Garrison | Discovered new exit (range 11) 11562 | -7/Garrison | Discovered new exit (range 89) 11659 | -7/Garrison | Triggered checkpoint 11701 | -7/Garrison | Triggered checkpoint 11825 | -7/Garrison | Garrison Relay disabled 11843 | -7/Garrison | Garrison Relay disabled 12035 | -7/Garrison | Entered Factory 12035 | -6/Factory | Evolved 2 slots: Utility x2 12057 | -6/Factory | Build established: Botlord-Mutant 12547 | -6/Factory | Repaired Broken Prc. Assault Rifle? 12652 | -6/Factory | Repaired Broken Prc. Assault Rifle 12753 | -6/Factory | Identified exit to Garrison 12753 | -6/Factory | Entered Garrison 12809 | -6/Garrison | Garrison Relay disabled 12875 | -6/Garrison | Triggered checkpoint 13009 | -6/Garrison | Triggered checkpoint 13129 | -6/Garrison | Discovered new exit (range 8) 13245 | -6/Garrison | Discovered new exit (range 10) 13287 | -6/Garrison | Expanded RIF knowledge: Crosswire 13481 | -6/Garrison | Triggered checkpoint 13625 | -6/Garrison | Discovered new exit (range 12) 13670 | -6/Garrison | Core integrity fell below 50% 13721 | -6/Garrison | Expanded RIF knowledge: Hotswap 13751 | -6/Garrison | Garrison Relay disabled 13843 | -6/Garrison | Entered Factory 13843 | -5/Factory | Evolved 2 slots: Utility x2 14319 | -5/Factory | Lost 3 parts (1p1u1w) 14387 | -5/Factory | Found Prototype Launcher 14387 | -5/Factory | Identified Mni. Smartbomb Launcher 14602 | -5/Factory | Discovered new exit (range 8) 14713 | -5/Factory | Cargo convoy interrupted 15144 | -5/Factory | Discovered new exit (range 14) 15225 | -5/Factory | Core integrity fell below 50% 15253 | -5/Factory | Core integrity fell below 20% 15267 | -5/Factory | Entered another Factory area 15267 | -4/Factory | Evolved 2 slots: Propulsion x1, Utility x1 15279 | -4/Factory | Lost 10 parts (3n5u2w) 15524 | -4/Factory | Build established: Mutant 15541 | -4/Factory | Identified exit to Garrison 15541 | -4/Factory | Entered Garrison 15597 | -4/Garrison | Lost 3 parts (2n1u) 15614 | -4/Garrison | Spotted B-86 Titan 15615 | -4/Garrison | Triggered checkpoint 15627 | -4/Garrison | Discovered new exit (range 50) 15627 | -4/Garrison | Discovered new exit (range 42) 15627 | -4/Garrison | Discovered new exit (range 34) 15651 | -4/Garrison | System corruption reached 10% 15659 | -4/Garrison | Expanded RIF knowledge: Autoassimilate 15665 | -4/Garrison | Core integrity fell below 50% 15680 | -4/Garrison | Entered Research 15680 | -3/Research | Evolved 2 slots: Power x1, Propulsion x1 15683 | -3/Research | Lost 6 parts (3n2u1w) 15721 | -3/Research | Found Quantum Capacitor 15893 | -3/Research | Core integrity fell below 50% 15907 | -3/Research | Core integrity fell below 20% 15925 | -3/Research | System corruption reached 10% 15935 | -3/Research | Lost 4 parts (3n1u) 15937 | -3/Research | Destroyed by P-80 Master with Gamma Rifle Last Messages --------------- 15892_ Stasis field depleted. 15902_ Slammed into G-67 Veteran. 15902_ Destabilizing: Core damaged (-39). 15904_ Adv. Hacking Suite destroyed. 15905_ Critical hit (Burn: +50). 15909_ Acquired 105 matter. 15909_ K-01 Serf cleans the Reaction Chamber. 15912_ System corrupted: Component data lost. 15914_ K-01 Serf cleans the Reaction Chamber. 15917_ Acquired Field Propulsion Array. 15920_ Acquired Particle Reactor. 15922_ Dropped Particle Reactor. 15925_ K-01 Serf destroyed. 15929_ 0Z9M W9FZ7PQB0TRP96UVS5K 15933_ Reaction Chamber disabled. 15936_ Critical hit (Burn: +37). 15936_ Triggered Alarm Trap. 15936_ RIF jams signal. 15937_ Field Propulsion Array destroyed. 15937_ Critical hit (Burn: +37). Map ----- +----------------------------------------------------+ | ??????????????????????????????????????? | | ??????????????????????????????????????? | | ??????????????????????????????????????? | | ??????????????????????????????????????? | | ??????????????????????????????????????? | | ??????????????????????????????????????? | | ???????????????????????????????######## | | ???????????????????????????????# # | | ???????????????????????????????# # | | ???????????????????????????????#! # | | ???????????????????????????????# !# | | ???????????????????????????????# # | | ???????????????????????????????# # | | ??????????????????????########?###+###? | | ??????????????????????# #?#] #? | | ??????????????????????# #?# #? | | ??????????????????????# #?# " #? | | ??????????????????????#* #?# #? | | ??????????????????????# #?# #? | | ??????????????????????# #?### ###? | | ??????????????????????###+######## #??? | | ??????????????????????# g p ##?? | | ???????????############ gp #?? | | ????????? p #?? | | ????????? #?? | | ????????? @ g "" ] #?? | | ????????? ############ gg""" #?? | | ????????????? ######???### =""" #?? | | ????????????? # ## #?? | | ????????????# # ## #?? | | ????????????# # ## #?? | | ????????????# # """ # ! #?? | | ????????????# # """ # ###########?? | | ????????????# # """ ! # #???????????? | | ????????????# # ?# #???????????? | | ????????????# #? ???# #???????????? | | ############# ####+###### ####????????? | | #????????? | | ^ #????????? | | #????????? | | #????????? | | ##############"##########+##+#????????? | | ???????????? ?????? ??????????? | | ?????????? #???# ????????? | | ???# #???# """"" ??????? | | ??# #???# """"" #?????? | | ???###########???# """"" #?????? | | ?????????????????# #?????? | | ####??????????????????# ? #?????? | | ??????????????????????# ?????????? | +----------------------------------------------------+ Best States ------------- Heat Dissipation 64 Coolant Potential 50 Energy Generation 19 Energy Capacity 315 Matter Stores 300 Matter Capacity 300 Sight Range 16 Terrain Scan Density 10 Armor Coverage 2150 Resistance: KI 30 Utility Shielding 66 Evasion (%) 73 Recoil Reduction 4 Kinecelleration 30 Offensive Hacking 14 Defensive Hacking 10 Relay Coupler Types 6 Relay Coupler Value 133 Authchip Count 1 Item Schematics ----------------- Transport Network Coupler | -10/Materials | Hacked ECM Suite | -10/Materials | Hacked Lrn. Terrain Scanner | -6/Factory | Hacked Adv. Force Field | -5/Factory | Hacked Robot Schematics ------------------ None Fabricated ------------ Nothing Repaired ---------- Lgt. Treads | 25% | -8/Materials Lgt. Treads | 17% | -7/Factory Minigun | 35% | -7/Factory | Broken Imp. Carbon-fiber Leg | 57% | -7/Factory Prc. Assault Rifle | 95% | -6/Factory | Broken Prc. Assault Rifle | 3% | -6/Factory | Broken Studied --------- Remote Datajack | -7/Factory | Hacked Imp. Carbon-fiber Leg | -7/Factory | Hacked Carbon-fiber Leg | -7/Factory | Hacked Mni. Grenade Launcher | -7/Factory | Hacked Mic. Nuclear Core | -7/Factory | Hacked Lgt. Nuclear Core | -7/Factory | Hacked Powered Hammer | -7/Factory | Hacked Alien Tech Used ----------------- None Achievements -------------- None Challenges ------------ None Game ------ Seed StrikeHoverAutobeam Manual? 0 Play Time 01:43:03 Cumulative 830.4 hours Start 2025.11.17 @ 16:58:55 End 2025.11.17 @ 20:43:41 Sessions 3 Manual Loads 0 Difficulty Rogue Special Mode None Game No. 836 Rogue 836 Adventurer 0 Explorer 0 Win Type - Total 40 Types 15/4/11/2/0/0/5/2/1/0 Lore% 96 Gallery% 86 Achievement% 63 Wizard Run 0 Options --------- Layout 0 ASCII 0 Keyboard 0 Movement Numpad Keybinds 0 Fullscreen 1 Font 18/Smallcaps Map View 76x50 Zoom Use 0% Tactical HUD 1 Map Filters NONE Filters NONE Steam 1 RUN: 205150a7-623f-454b-8f69-3dcce795860d